fUST/lending_fUST_20251219
["ID","MTS","AMOUNT","RATE_DAILY","PERIOD"]
[399138714,1766125840783,-185.20971,0.00021535,2]
[399138716,1766125840792,-185.20971,0.00021535,2]
[399138718,1766125840802,-185.20971,0.00021535,2]
[399138720,1766125840811,-185.20971,0.00021535,2]
[399138722,1766125840820,-1388.984045,0.00021535,2]
[399138724,1766125840829,-1388.984045,0.00021535,2]
[399138726,1766125840839,-1388.984045,0.00021535,2]
[399138728,1766125840848,-1388.984045,0.00021535,2]
[399138730,1766125840857,-228.84491577,0.00021586,2]
[399138732,1766125840866,-341.236638,0.0002168,2]
[399138734,1766125840875,-341.236638,0.0002168,2]
[399138736,1766125840884,-341.236638,0.0002168,2]
[399138738,1766125840894,-341.236638,0.0002168,2]
[399138740,1766125840903,-151.0,0.0002169,2]
[399138742,1766125840912,-151.0,0.000217,2]
[399138744,1766125840921,-600.0,0.00021965,10]
[399138746,1766125840931,-574.12855637,0.00021987,2]
[399138748,1766125840940,-250.0,0.00021987,2]
[399138750,1766125840949,-250.0,0.00021987,2]
[399138752,1766125840958,-250.0,0.00021987,2]
[399138754,1766125840968,-250.0,0.00021987,2]
[399138756,1766125840977,-250.0,0.00021987,2]
[399138758,1766125840987,-250.0,0.00021987,2]
[399138760,1766125840996,-250.0,0.00021987,2]
[399138762,1766125841005,-250.0,0.00021987,2]
[399138764,1766125841015,-250.0,0.00021987,2]
[399138766,1766125841025,-250.0,0.00021987,2]
[399138768,1766125841040,-250.0,0.00021987,2]
[399138770,1766125841049,-185.20971,0.0002199,2]
[399138772,1766125841059,-185.20971,0.0002199,2]
[399138775,1766125841068,-185.20971,0.0002199,2]
[399138777,1766125841078,-185.209703,0.0002199,2]
[399138779,1766125841087,-486.88703245,0.0002199,2]
[399138781,1766125841101,-902.09701255,0.0002199,2]
[399138783,1766125841110,-1388.984045,0.0002199,2]
[399138785,1766125841119,-374.6854881,0.0002199,2]
[399138787,1766125841130,-394.56133503,0.0002199,2]
[399138861,1766125843428,-619.73722187,0.0002199,2]
[399138862,1766125843548,-1388.984045,0.0002199,2]
[399138863,1766125843558,-341.236638,0.0002199,2]
[399138864,1766125843568,-341.236638,0.0002199,2]
[399138865,1766125843578,-341.236638,0.0002199,2]
[399138866,1766125843588,-341.236638,0.0002199,2]
[399138867,1766125843597,-10172.69437189,0.00022,2]
[399138868,1766125843607,-273.8411733,0.00022,14]
[399138869,1766125843616,-10073.57,0.00022,2]
[399138870,1766125843625,-200.79967312,0.00022,2]
[399138871,1766125843634,-175.454514,0.00022,2]
[399138872,1766125843643,-175.454514,0.00022,2]
[399138873,1766125843652,-175.454514,0.00022,2]
[399138874,1766125843661,-175.454514,0.00022,2]
[399138875,1766125843670,-323.25397572,0.00022108,2]
[399138876,1766125843679,-258.0,0.00022251,2]
[399138877,1766125843688,-25.74194364,0.0002236,3]
[399138885,1766125872713,250.70114568,0.00013273,2]
[399138886,1766125886074,216.41439893,0.00013273,2]
[399138887,1766125923149,500.0,0.00013699,2]
[399138888,1766125924531,500.0,0.00013699,2]
[399138906,1766126103877,500.0,0.00013273,2]
[399138907,1766126103934,900.22714368,0.00013821,2]
[399138910,1766126166910,283.57468351,0.00013699,2]
[399138912,1766126223991,213.68292338,0.00013273,2]
[399138922,1766126528423,175.94373406,0.00013699,2]
[399138924,1766126546253,150.0,0.00013775,2]
[399138926,1766126583424,583.64251534,0.00013273,2]
[399138927,1766126610127,150.0,0.00013358,2]
[399138928,1766126610557,150.0,0.00013994,2]
[399138932,1766126674915,150.0,0.00013277,2]
[399138933,1766126675338,150.0,0.0001391,2]
[399138934,1766126739715,150.0,0.00013284,2]
[399138935,1766126740114,150.0,0.00013917,2]
[399138936,1766126804172,150.0,0.00013211,2]
[399138937,1766126804619,150.0,0.0001384,2]
[399138939,1766126824178,500.0,0.00013699,2]
[399138940,1766126824379,500.0,0.00014247,2]
[399138942,1766126884033,500.0,0.00013699,2]
[399138943,1766126933005,150.0,0.00013138,2]
[399138944,1766126933325,150.0,0.00013764,2]
[399138945,1766126933722,150.0,0.0001439,2]
[399138946,1766126934145,150.0,0.00015015,2]
[399138947,1766126947282,500.0,0.00013273,2]
[399138948,1766126998639,150.0,0.00013317,2]
[399138949,1766126999256,150.0,0.00013951,2]
[399138950,1766127027646,-8616.14582059,0.000168,2]
[399138951,1766127027682,-397.99137157,0.000169,2]
[399138952,1766127027720,-667.0,0.000169,2]
[399138973,1766127032723,-4200.0,0.000175,2]
[399138974,1766127032733,-10000.0,0.00018,2]
[399138975,1766127032745,-3885.04498909,0.00018031,2]
[399138976,1766127032755,-300.0,0.00018032,2]
[399138977,1766127032765,-300.0,0.00018032,2]
[399138978,1766127032774,-300.0,0.00018032,2]
[399138979,1766127032783,-300.0,0.00018032,2]
[399138980,1766127032792,-300.0,0.00018032,2]
[399138981,1766127032802,-300.0,0.00018032,2]
[399138982,1766127032812,-300.0,0.00018032,2]
[399138983,1766127032821,-300.0,0.00018032,2]
[399138984,1766127032831,-300.0,0.00018032,2]
[399138985,1766127032841,-300.0,0.00018032,2]
[399138986,1766127032851,-300.0,0.00018032,2]
[399138987,1766127032861,-300.0,0.00018032,2]
[399138988,1766127032871,-300.0,0.00018032,2]
[399138989,1766127032881,-300.0,0.00018032,2]
[399138990,1766127032890,-300.0,0.00018032,2]
[399138991,1766127032899,-177.0,0.0001934,2]
[399138992,1766127032908,-200.58050956,0.00020223,5]
[399138993,1766127032917,-300.81683596,0.00020618,2]
[399138994,1766127032926,-2213.7393608,0.00020974,2]
[399138995,1766127032936,-204.0,0.0002134,2]
[399138996,1766127032945,-500.0,0.00021349,2]
[399138997,1766127032954,-500.0,0.0002135,10]
[399138998,1766127032963,-500.0,0.0002135,2]
[399138999,1766127032972,-500.0,0.0002135,2]
[399139000,1766127032981,-181.837,0.0002135,2]
[399139001,1766127032990,-152.37865823,0.0002139,2]
[399139002,1766127032999,-274.28158482,0.0002139,2]
[399139003,1766127033009,-163.28971607,0.0002139,2]
[399139004,1766127033018,-600.0,0.00021415,10]
[399139005,1766127033027,-154.0,0.000216,7]
[399139006,1766127033035,-17438.26820473,0.00021621,3]
[399139007,1766127033044,-8748.2744175,0.00021706,2]
[399139008,1766127033053,-1241.89807007,0.00021806,2]
[399139009,1766127033062,-1410.28995504,0.00021808,2]
[399139010,1766127033071,-2472.4662509,0.0002183,2]
[399139011,1766127033080,-574.12855637,0.00021908,2]
[399139012,1766127033089,-250.0,0.00021908,2]
[399139013,1766127033098,-250.0,0.00021908,2]
[399139014,1766127033107,-250.0,0.00021908,2]
[399139015,1766127033116,-258.96481205,0.00021908,2]
[399139016,1766127033124,-250.0,0.00021908,2]
[399139017,1766127033133,-250.0,0.00021908,2]
[399139018,1766127033142,-250.0,0.00021908,2]
[399139019,1766127033151,-250.0,0.00021908,2]
[399139020,1766127033159,-250.0,0.00021908,2]
[399139021,1766127033245,-250.0,0.00021908,2]
[399139022,1766127033254,-250.0,0.00021908,2]
[399139023,1766127033263,-250.0,0.00021908,2]
[399139024,1766127033272,-250.0,0.00021908,2]
[399139025,1766127033281,-250.0,0.00021908,2]
[399139026,1766127033290,-250.0,0.00021908,2]
[399139027,1766127033299,-500.0,0.00021916,2]
[399139028,1766127033309,-8876.4676209,0.00021921,2]
[399139029,1766127033318,-2472.466251,0.00021991,2]
[399139030,1766127033328,-151.0,0.00022,10]
[399139031,1766127033337,-500.0,0.00022358,2]
[399139032,1766127033347,-405.86992721,0.00022358,2]
[399139033,1766127033356,-392.24920759,0.00022358,2]
[399139034,1766127033365,-2000.0,0.00022359,3]
[399139035,1766127033375,-595.37131296,0.00022456,2]
[399139036,1766127033383,-1410.28995504,0.00022849,2]
[399139037,1766127033392,-300.81683596,0.00022918,2]
[399139038,1766127033401,-293.92148893,0.00022948,2]
[399139039,1766127033410,-617.40005154,0.00023004,2]
[399139040,1766127033419,-231.0,0.0002334,2]
[399139041,1766127033429,-248.2,0.0002337,10]
[399139042,1766127033439,-17438.26,0.0002338,3]
[399139043,1766127033448,-640.24385345,0.00023552,2]
[399139044,1766127033457,-720.0,0.00023556,10]
[399139045,1766127033467,-603.6232862,0.0002359,2]
[399139046,1766127033477,-297.84,0.00023679,10]
[399139047,1766127033487,-2362.68,0.0002368,3]
[399139048,1766127033497,-1181.34,0.0002368,3]
[399139049,1766127033510,-590.67,0.0002368,3]
[399139050,1766127033519,-295.33,0.0002368,3]
[399139051,1766127033528,-886.02,0.0002368,3]
[399139052,1766127033537,-150.0,0.00023689,2]
[399139053,1766127033547,-300.0,0.00023689,2]
[399139054,1766127033556,-450.0,0.00023689,2]
[399139055,1766127033565,-600.0,0.00023689,2]
[399139056,1766127033574,-750.0,0.00023689,2]
[399139057,1766127033583,-828.91685803,0.00023689,2]
[399139058,1766127033592,-4466.51482337,0.00023689,3]
[399139059,1766127033604,-12971.74517663,0.00023689,3]
[399139060,1766127033613,-151.0,0.0002369,2]
[399139061,1766127033622,-520.584266,0.0002369,2]
[399139062,1766127033631,-520.584266,0.0002369,2]
[399139063,1766127033640,-520.584266,0.0002369,2]
[399139064,1766127033649,-520.584266,0.0002369,2]
[399139065,1766127033659,-181.131014,0.0002369,2]
[399139066,1766127033667,-181.131014,0.0002369,2]
[399139067,1766127033677,-181.131014,0.0002369,2]
[399139068,1766127033686,-181.131014,0.0002369,2]
[399139069,1766127033696,-200.110842,0.0002369,2]
[399139070,1766127033706,-200.110842,0.0002369,2]
[399139071,1766127033715,-200.110842,0.0002369,2]
[399139072,1766127033724,-200.110842,0.0002369,2]
[399139073,1766127033734,-18814.88505504,0.0002369,3]
[399139074,1766127033745,-306.921,0.0002369,3]
[399139075,1766127033756,-612.13903081,0.0002369,3]
[399139076,1766127033769,-5942.89366695,0.0002369,3]
[399139077,1766127033779,-1123.02642622,0.0002369,3]
[399139115,1766127038643,-500.0,0.0001803,2]
[399139117,1766127038652,-500.0,0.0001803,2]
[399139119,1766127038662,-296.43468146,0.0001803,2]
[399139121,1766127038671,-500.0,0.0001803,2]
[399139132,1766127038766,-99.07202434,0.0001803,2]
[399139135,1766127038778,-307.0160213,0.0001803,2]
[399139136,1766127038787,-186.16155034,0.0001803,2]
[399139139,1766127038796,-500.0,0.0001803,2]
[399139141,1766127038806,-500.0,0.0001803,2]
[399139143,1766127038815,-500.0,0.0001803,2]
[399139144,1766127038824,-500.0,0.0001803,2]
[399139147,1766127038834,-6.82242836,0.0001803,2]
[399139149,1766127038846,-403.20467783,0.0001803,2]
[399139151,1766127038856,-500.0,0.0001803,2]
[399139153,1766127038865,-500.0,0.0001803,2]
[399139155,1766127038875,-500.0,0.0001803,2]
[399139157,1766127038884,-500.0,0.0001803,2]
[399139159,1766127038894,-293.67678301,0.0001803,2]
[399139161,1766127038904,-29035.57631814,0.0002369,3]
[399139163,1766127038915,-2000.0,0.0002369,3]
[399139166,1766127038931,-3610.35764539,0.0002369,3]
[399139168,1766127038942,-3404.79381245,0.0002369,3]
[399139170,1766127038953,-3953.67215326,0.0002369,3]
[399139172,1766127038964,-948.77489174,0.0002369,3]
[399139174,1766127038974,-603.62328618,0.00023703,2]
[399139176,1766127038983,-603.62328618,0.00023816,2]
[399139178,1766127038993,-1410.28995504,0.0002389,2]
[399139180,1766127039002,-603.62328618,0.00023929,2]
[399139182,1766127039011,-500.0,0.00023989,2]
[399139184,1766127039020,-500.0,0.00023989,2]
[399139186,1766127039029,-500.0,0.00023989,2]
[399139188,1766127039038,-500.0,0.00023989,2]
[399139190,1766127039048,-474.18,0.00023989,2]
[399139192,1766127039057,-100000.0,0.0002399,2]
[399139194,1766127039066,-151.0,0.0002399,2]
[399139196,1766127039076,-217.480164,0.0002399,2]
[399139197,1766127039085,-833.390427,0.0002399,2]
[399139199,1766127039094,-833.390427,0.0002399,2]
[399139201,1766127039103,-833.390427,0.0002399,2]
[399139203,1766127039113,-833.390427,0.0002399,2]
[399139205,1766127039122,-151.0,0.0002399,2]
[399139207,1766127039131,-520.584266,0.0002399,2]
[399139209,1766127039141,-520.584266,0.0002399,2]
[399139211,1766127039151,-520.584266,0.0002399,2]
[399139213,1766127039160,-520.584266,0.0002399,2]
[399139215,1766127039169,-181.131014,0.0002399,2]
[399139217,1766127039178,-181.131014,0.0002399,2]
[399139219,1766127039187,-181.131014,0.0002399,2]
[399139221,1766127039195,-181.131014,0.0002399,2]
[399139223,1766127039204,-200.110842,0.0002399,2]
[399139225,1766127039213,-200.110842,0.0002399,2]
[399139227,1766127039223,-200.110842,0.0002399,2]
[399139229,1766127039232,-200.110842,0.0002399,2]
[399139231,1766127039241,-1128.30876142,0.00024,30]
[399139233,1766127039250,-151.0,0.00024,4]
[399139235,1766127039260,-603.62328618,0.00024042,2]
[399139237,1766127039269,-160.0,0.0002405,2]
[399139239,1766127039278,-663.93287602,0.000241,2]
[399139241,1766127039288,-309.47871902,0.00024142,2]
[399139243,1766127039299,-826.08819371,0.00024142,2]
[399139410,1766127040900,-359.50100004,0.000179,3]
[399139540,1766127042249,-276.70735281,0.000179,3]
[399139541,1766127042258,-711.66264719,0.00020736,2]
[399139593,1766127043642,-241.31229013,0.00020736,2]
[399139595,1766127043652,-952.97493732,0.0002185,2]
[399139597,1766127043661,-952.97493732,0.00022965,2]
[399139599,1766127043670,-26.63466356,0.00023326,5]
[399139601,1766127043682,-188.30839235,0.00023326,5]
[399139603,1766127043691,-774.648179,0.00023339,2]
[399139605,1766127043702,-250.34975896,0.0002366,2]
[399139607,1766127043712,-952.97493732,0.00024079,2]
[399139609,1766127043721,-345.51,0.00024132,10]
[399139611,1766127043730,-12055.84176524,0.00024142,2]
[399140106,1766127063881,150.0,0.0001357,2]
[399140107,1766127064282,150.0,0.00014217,2]
[399140108,1766127064688,150.0,0.00014863,2]
[399140109,1766127087195,500.0,0.00013273,2]
[399140110,1766127087251,714.10080557,0.00013821,2]
[399140113,1766127123475,1000.0,0.000169,2]
[399140116,1766127162738,234.33,0.00016829,120]
[399140119,1766127192939,150.0,0.00012582,2]
[399140120,1766127193363,150.0,0.00013181,2]
[399140128,1766127257215,150.0,0.00012615,2]
[399140129,1766127257607,150.0,0.00013215,2]
[399140130,1766127258016,150.0,0.00013816,2]
[399140132,1766127322082,150.0,0.00012916,2]
[399140133,1766127322495,150.0,0.00013531,2]
[399140134,1766127322922,150.0,0.00014146,2]
[399140135,1766127332310,3000.0,0.000169,2]
[399140136,1766127336027,1000.0,0.0001401,30]
[399140137,1766127362119,1000.0,0.0001401,30]
[399140138,1766127364652,1000.0,0.000169,2]
[399140141,1766127375987,1000.0,0.0001401,30]
[399140142,1766127387331,150.0,0.0001263,2]
[399140143,1766127387750,150.0,0.00013231,2]
[399140144,1766127388170,150.0,0.00013833,2]
[399140145,1766127390665,1000.0,0.0001401,30]
[399140146,1766127403150,726.0,0.0001401,30]
[399140149,1766127452563,150.0,9.679e-05,2]
[399140150,1766127452981,150.0,0.0001014,2]
[399140151,1766127453381,150.0,0.00010601,2]
[399140153,1766127481308,323.242649,0.00013699,2]
[399140156,1766127580819,150.0,0.00011137,2]
[399140157,1766127581216,150.0,0.00011667,2]
[399140158,1766127581765,150.0,0.00012197,2]
[399140167,1766127611324,1000.0,0.000169,2]
[399140173,1766127646273,150.0,0.00010948,2]
[399140174,1766127646705,150.0,0.0001147,2]
[399140176,1766127710644,150.0,0.00010132,2]
[399140177,1766127711034,150.0,0.00010615,2]
[399140180,1766127774991,150.0,9.955e-05,2]
[399140181,1766127775414,150.0,0.00010429,2]
[399140310,1766127843900,1000.0,0.000169,2]
[399140313,1766127844016,150.0,9.594e-05,2]
[399140366,1766127847411,150.0,0.00010051,2]
[399140375,1766127911823,150.0,9.655e-05,2]
[399140376,1766127912463,150.0,0.00010115,2]
[399140377,1766127912659,150.0,0.00010575,2]
[399140381,1766127976511,150.0,9.632e-05,2]
[399140382,1766127977042,150.0,0.00010091,2]
[399140383,1766128040948,150.0,9.602e-05,2]
[399140384,1766128084430,1000.0,0.000169,2]
[399140387,1766128144467,258.77,0.000169,2]
[399140451,1766128231819,-5000.0,0.00017417,2]
[399140454,1766128231829,-706.19704384,0.00017627,2]
[399140455,1766128231839,-150.0,0.00017727,2]
[399140457,1766128231848,-270.14257197,0.0001795,2]
[399140459,1766128231858,-8128.0,0.00018,2]
[399140461,1766128231867,-7924.97940617,0.000182,2]
[399140463,1766128231876,-624.57444532,0.00018271,2]
[399140466,1766128231889,-345.22668566,0.00018271,2]
[399140469,1766128231898,-2035.32027289,0.00018272,2]
[399140472,1766128231910,-418.0,0.00018272,2]
[399140476,1766128231921,-2932.96222257,0.00018272,2]
[399140521,1766128237725,-59181.8138908,0.00018272,2]
[399140524,1766128237738,-3811.66792024,0.00018272,2]
[399140526,1766128237749,-1890.3837352,0.00018272,2]
[399140528,1766128237758,-3000.0,0.000183,2]
[399140530,1766128237767,-157.7304779,0.00018354,2]
[399140532,1766128237776,-500.0,0.0001839,2]
[399140534,1766128237785,-300.0,0.00018391,2]
[399140536,1766128237794,-300.0,0.00018391,2]
[399140538,1766128237804,-300.0,0.00018391,2]
[399140539,1766128237813,-300.0,0.00018391,2]
[399140542,1766128237824,-300.0,0.00018391,2]
[399140543,1766128237832,-300.0,0.00018391,2]
[399140546,1766128237841,-300.0,0.00018391,2]
[399140548,1766128237851,-300.0,0.00018391,2]
[399140550,1766128237860,-300.0,0.00018391,2]
[399140552,1766128237870,-300.0,0.00018391,2]
[399140554,1766128237879,-300.0,0.00018391,2]
[399140555,1766128237892,-300.0,0.00018391,2]
[399140558,1766128237901,-300.0,0.00018391,2]
[399140560,1766128237910,-300.0,0.00018391,2]
[399140562,1766128237919,-300.0,0.00018391,2]
[399140564,1766128237928,-194.023225,0.00018397,2]
[399140566,1766128237937,-600.0,0.00018758,2]
[399140568,1766128237946,-177.0,0.00019727,2]
[399140569,1766128237956,-323.242649,0.00020187,2]
[399140571,1766128237966,-500.0,0.00020615,2]
[399140574,1766128237975,-547.30082901,0.00020615,2]
[399140576,1766128237985,-500.0,0.00020615,2]
[399140577,1766128237994,-512.29694078,0.00020615,2]
[399140579,1766128238003,-500.0,0.00020615,2]
[399140581,1766128238012,-501.59930653,0.00020615,2]
[399140583,1766128238022,-500.0,0.00020615,2]
[399140585,1766128238032,-500.96588669,0.00020615,2]
[399140587,1766128238042,-529.0920607,0.00020615,2]
[399140589,1766128238051,-1000.0,0.00020616,2]
[399140591,1766128238061,-720.0,0.00020634,2]
[399140593,1766128238071,-278.043,0.00020634,2]
[399140595,1766128238080,-184.7738857,0.00020634,2]
[399140597,1766128238090,-985.46886175,0.00020657,2]
[399140599,1766128238100,-250.0,0.00020657,2]
[399140601,1766128238111,-250.0,0.00020657,2]
[399140603,1766128238122,-574.12855637,0.00020657,2]
[399140605,1766128238135,-250.0,0.00020657,2]
[399140607,1766128238146,-250.0,0.00020657,2]
[399140609,1766128238159,-250.0,0.00020657,2]
[399140612,1766128238173,-250.0,0.00020657,2]
[399140614,1766128238183,-250.0,0.00020657,2]
[399140616,1766128238194,-250.0,0.00020657,2]
[399140618,1766128238205,-250.0,0.00020657,2]
[399140620,1766128238215,-250.0,0.00020657,2]
[399140622,1766128238226,-250.0,0.00020657,2]
[399140624,1766128238237,-500.0,0.00020995,2]
[399140626,1766128238247,-500.0,0.00020995,2]
[399140628,1766128238258,-500.0,0.00020995,2]
[399140630,1766128238268,-595.37131296,0.00021205,2]
[399140632,1766128238278,-204.0,0.00021727,2]
[399140633,1766128238289,-617.40005154,0.00021753,2]
[399140636,1766128238299,-160.0,0.00021967,2]
[399140637,1766128238309,-226.49849415,0.00022,2]
[399140640,1766128238319,-905.9939766,0.00022,2]
[399140642,1766128238329,-492.88771974,0.00022028,2]
[399140644,1766128238343,-7.11228026,0.00022028,2]
[399140646,1766128238353,-500.0,0.00022028,2]
[399140648,1766128238366,-500.0,0.00022028,2]
[399140650,1766128238377,-500.0,0.00022149,2]
[399140652,1766128238386,-640.24385345,0.00022301,2]
[399140654,1766128238396,-260.0,0.00022515,2]
[399140656,1766128238406,-864.0,0.00022697,10]
[399140658,1766128238417,-2038.48644734,0.00022824,2]
[399140660,1766128238427,-663.93287602,0.00022849,2]
[399140662,1766128238437,-194.023225,0.00022964,2]
[399140664,1766128238446,-500.0,0.00022999,2]
[399140666,1766128238456,-500.0,0.00022999,2]
[399140668,1766128238465,-1000.0,0.00023,2]
[399140670,1766128238474,-360.0,0.00023063,2]
[399140672,1766128238484,-298.44507464,0.00023326,5]
[399140674,1766128238493,-1192.58651828,0.00023326,5]
[399140676,1766128238502,-332.3979468,0.00023397,2]
[399140678,1766128238518,-356.10044564,0.00023397,2]
[399140680,1766128238527,-431.68246127,0.0002353,2]
[399140682,1766128238537,-73.64669309,0.00023608,2]
[399140684,1766128238549,-204.49558596,0.00023608,2]
[399140686,1766128238559,-460.0,0.00023611,2]
[399140688,1766128238569,-892.96134576,0.00023659,2]
[399140690,1766128238578,-500.0,0.00023689,2]
[399140692,1766128238588,-138.84181886,0.00023689,2]
[399140838,1766128240022,-361.15818114,0.00023689,2]
[399140840,1766128240032,-500.0,0.00023689,2]
[399140842,1766128240041,-500.0,0.00023689,2]
[399140844,1766128240050,-500.0,0.00023689,2]
[399140846,1766128240060,-616.96,0.00023689,2]
[399140848,1766128240069,-500.0,0.00023689,2]
[399140850,1766128240078,-500.0,0.00023689,2]
[399140852,1766128240088,-500.0,0.00023689,2]
[399140854,1766128240098,-500.0,0.00023689,2]
[399140856,1766128240107,-500.0,0.00023689,2]
[399140858,1766128240117,-500.0,0.00023689,2]
[399140860,1766128240126,-231.0,0.00023727,2]
[399140862,1766128240135,-2142.02970015,0.00023883,2]
[399140863,1766128240145,-429.0194585,0.0002391,2]
[399140865,1766128240154,-155.3063869,0.00023922,2]
[399140867,1766128240163,-2422.5409421,0.00023922,2]
[399140869,1766128240172,-713.97283296,0.00023945,2]
[399140871,1766128240181,-459.32,0.00023975,2]
[399140873,1766128240190,-166.62,0.0002398,10]
[399140875,1766128240200,-260.16,0.0002398,10]
[399140877,1766128240209,-216.8,0.0002398,10]
[399140879,1766128240219,-180.66,0.0002398,10]
[399140881,1766128240227,-500.0,0.00023989,2]
[399140883,1766128240236,-500.0,0.00023989,2]
[399140885,1766128240245,-500.0,0.00023989,2]
[399140887,1766128240254,-60271.29935799,0.0002399,2]
[399140889,1766128240264,-151.0,0.0002399,2]
[399140891,1766128240273,-151.0,0.0002399,2]
[399140893,1766128240282,-151.0,0.0002399,2]
[399140894,1766128240291,-151.0,0.0002399,2]
[399140896,1766128240300,-151.0,0.0002399,2]
[399140898,1766128240310,-151.0,0.0002399,2]
[399140900,1766128240319,-151.0,0.0002399,2]
[399140902,1766128240328,-151.0,0.0002399,2]
[399140904,1766128240337,-151.0,0.0002399,2]
[399140906,1766128240346,-151.0,0.0002399,2]
[399140908,1766128240355,-151.0,0.0002399,2]
[399140910,1766128240364,-151.0,0.0002399,2]
[399140912,1766128240373,-500.0,0.0002401,2]
[399140914,1766128240383,-429.0194585,0.0002407,2]
[399140916,1766128240392,-197.933016,0.000241,2]
[399140918,1766128240401,-500.0,0.00024131,2]
[399140920,1766128240410,-339.98,0.00024131,2]
[399140922,1766128240419,-1476.67,0.00024132,3]
[399140924,1766128240428,-738.33,0.00024132,3]
[399140925,1766128240437,-738.33,0.00024132,3]
[399140927,1766128240446,-500.0,0.00024141,2]
[399140929,1766128240455,-500.0,0.00024141,2]
[399140931,1766128240465,-500.0,0.00024141,2]
[399140933,1766128240475,-500.0,0.00024141,2]
[399140935,1766128240484,-362.84,0.00024141,2]
[399140937,1766128240493,-500.0,0.00024141,2]
[399140939,1766128240502,-500.0,0.00024141,2]
[399140941,1766128240511,-500.0,0.00024141,2]
[399140943,1766128240521,-500.0,0.00024141,2]
[399140945,1766128240530,-500.0,0.00024141,2]
[399140947,1766128240540,-500.0,0.00024141,2]
[399140949,1766128240550,-500.0,0.00024141,2]
[399140951,1766128240560,-528.24,0.00024141,2]
[399140953,1766128240570,-200.0,0.00024141,2]
[399140963,1766128240662,-200.65670343,0.00024141,2]
[399140965,1766128240672,-200.0,0.00024141,2]
[399140966,1766128240682,-22918.49911964,0.00024142,2]
[399140967,1766128240693,-7947.17777822,0.00024142,2]
[399141260,1766128244062,-181193.74730578,0.00024142,2]
[399141262,1766128244072,-151.0,0.00024142,2]
[399141264,1766128244081,-666.712341,0.00024142,2]
[399141265,1766128244090,-666.712341,0.00024142,2]
[399141267,1766128244099,-666.712341,0.00024142,2]
[399141269,1766128244109,-666.712341,0.00024142,2]
[399141271,1766128244121,-312.350559,0.00024142,2]
[399141273,1766128244130,-312.350559,0.00024142,2]
[399141275,1766128244139,-312.350559,0.00024142,2]
[399141276,1766128244149,-312.350559,0.00024142,2]
[399141279,1766128244158,-151.0,0.00024142,2]
[399141282,1766128244167,-151.0,0.00024142,2]
[399141285,1766128244176,-151.0,0.00024142,2]
[399141287,1766128244185,-151.0,0.00024142,2]
[399141290,1766128244195,-151.0,0.00024142,2]
[399141293,1766128244204,-151.0,0.00024142,2]
[399141295,1766128244214,-151.0,0.00024142,2]
[399141297,1766128244223,-151.0,0.00024142,2]
[399141299,1766128244232,-151.0,0.00024142,2]
[399141301,1766128244241,-151.0,0.00024142,2]
[399141303,1766128244250,-151.0,0.00024142,2]
[399141305,1766128244261,-151.0,0.00024142,2]
[399141307,1766128244271,-7924.97940616,0.00024157,2]
[399141309,1766128244280,-560.0,0.00024158,2]
[399141310,1766128244290,-10462.64,0.000242,2]